bitfinex/quotes_SOLUSD_20251206
["timestamp","ask_amount","ask_price","bid_price","bid_amount"]
[1765040914378,8.18965053,133.34,133.32,8.24]
[1765040914681,13.31386362,133.34,133.32,8.24]
[1765040914861,0.69,133.34,133.32,8.24]
[1765040915254,0.69,133.34,133.32,8.96]
[1765040915768,0.69,133.34,133.32,8.24]
[1765040917187,0.69,133.34,133.32,8.96]
[1765040917676,0.69,133.34,133.32,8.24]
[1765040917892,5.81421309,133.34,133.32,8.24]
[1765040918881,0.1,133.36,133.33,0.72]
[1765040919771,0.1,133.36,133.33,8.21988725]
[1765040919971,0.1,133.36,133.34,0.69]
[1765040920173,0.1,133.36,133.35,8.24]
[1765040921185,0.78,133.36,133.35,8.24]
[1765040922196,5.90421309,133.36,133.35,8.24]
[1765040922695,5.90421309,133.36,133.34,8.24]
[1765040922992,5.80421309,133.35,133.34,8.24]
[1765040923796,5.80421309,133.35,133.32,8.19061673]
[1765040923982,5.80421309,133.35,133.33,8.24]
[1765040924793,5.80421309,133.35,133.32,8.19061673]
[1765040924794,5.80421309,133.34,133.31,14.99893545]
[1765040924977,5.80421309,133.34,133.32,8.24]
[1765040925597,5.12421309,133.34,133.32,8.93]
[1765040926695,13.30330143,133.35,133.32,8.93]
[1765040928493,12.62330143,133.35,133.32,8.93]
[1765040928703,0.68,133.34,133.32,8.24]
[1765040929000,0.68,133.34,133.32,8.93]
[1765040933802,0.1,133.36,133.33,0.69]
[1765040933803,0.78,133.36,133.33,0.69]
[1765040933983,0.68,133.35,133.33,0.69]
[1765040934507,0.1,133.36,133.33,0.69]
[1765040934802,0.78,133.36,133.33,0.69]
[1765040939317,0.78,133.36,133.34,8.24]
[1765040941406,0.78,133.36,133.33,0.69]
[1765040941603,0.78,133.36,133.35,8.24]
[1765040941914,4.05591306,133.36,133.35,8.24]
[1765040942094,4.05591306,133.36,133.33,0.69]
[1765040942281,3.37591306,133.36,133.35,8.24]
[1765040942899,4.08591306,133.36,133.35,8.24]
[1765040944805,0.81,133.36,133.35,8.24]
[1765040945109,4.08591306,133.36,133.35,8.24]
[1765040945785,0.1,133.36,133.35,8.24]
[1765040947709,0.1,133.36,133.35,16.43906261]
[1765040951615,0.1,133.36,133.35,19.71497567]
[1765040951820,0.1,133.36,133.35,28.52492059]
[1765040952125,0.1,133.36,133.35,39.39778342]
[1765040958612,0.1,133.36,133.35,48.59849352]
[1765040958834,0.1,133.36,133.35,40.35849352]
[1765040959042,0.1,133.36,133.35,48.59849352]
[1765040962871,0.1,133.36,133.35,51.87440658]
[1765040965946,0.1,133.36,133.35,74.25682232]
[1765040966322,0.1,133.36,133.35,67.7049962]
[1765040966532,0.1,133.36,133.35,74.25682232]
[1765040971365,0.1,133.36,133.35,51.87440658]
[1765040971975,0.1,133.36,133.35,48.59849352]
[1765040972978,0.1,133.36,133.35,40.35849352]
[1765040973174,0.1,133.36,133.35,48.59849352]
[1765040975476,0.1,133.36,133.35,70.83688406]
[1765040979388,0.1,133.36,133.35,52.69144446]
[1765040979570,0.79,133.36,133.35,64.20735752]
[1765040980662,0.1,133.36,133.35,64.20735752]
[1765040981264,0.79,133.36,133.35,64.20735752]
[1765040981678,0.1,133.36,133.35,64.20735752]
[1765040982604,0.1,133.36,133.35,65.67726378]
[1765040982913,0.1,133.36,133.35,52.64431284]
[1765040983076,0.1,133.36,133.35,41.12839978]
[1765040983393,0.1,133.36,133.35,49.36839978]
[1765040987103,0.1,133.36,133.35,65.67726378]
[1765040987804,0.1,133.39,133.38,28.39472198]
[1765040987982,0.1,133.39,133.38,36.63472198]
[1765040988400,0.1,133.39,133.38,39.91063504]
[1765040988705,0.79,133.39,133.38,39.91063504]
[1765040988904,0.79,133.39,133.38,47.40801095]
[1765040988905,0.1,133.39,133.38,47.40801095]
[1765040989109,0.79,133.39,133.38,47.40801095]
[1765040990509,0.1,133.39,133.38,47.40801095]
[1765040992092,0.79,133.39,133.38,47.40801095]
[1765040993788,0.79,133.39,133.38,19.58323389]
[1765040993983,0.79,133.39,133.38,10.77328897]
[1765040994181,0.79,133.39,133.38,19.01328897]
[1765040994407,0.79,133.39,133.38,11.51591306]
[1765040994617,0.79,133.39,133.38,8.24]
[1765040997898,0.79,133.39,133.38,15.73584683]
[1765040998715,0.79,133.39,133.38,23.23322274]
[1765041000735,0.79,133.39,133.38,7.49584683]
[1765041001020,0.79,133.39,133.38,8.24]
[1765041001931,5.90475671,133.39,133.38,8.24]
[1765041003027,0.79,133.39,133.36,20.10885933]
[1765041003215,0.1,133.39,133.38,8.24]
[1765041003728,0.79,133.39,133.38,8.24]
[1765041005845,5.90475671,133.39,133.38,8.24]
[1765041006335,13.40157056,133.39,133.38,8.24]
[1765041007016,13.40157056,133.39,133.33,25.51040402]
[1765041007244,5.11475671,133.37,133.34,8.24]
[1765041007434,5.11475671,133.35,133.34,22.51491613]
[1765041007631,5.11475671,133.35,133.34,8.24]
[1765041007828,5.80475671,133.35,133.34,8.24]
[1765041008649,5.80475671,133.35,133.31,8.80994492]
[1765041008949,0.69,133.34,133.32,15.83681385]
[1765041009253,0.69,133.34,133.32,23.3374168]
[1765041010446,0.69,133.34,133.32,15.83681385]
[1765041011536,5.80475671,133.34,133.33,8.24]
[1765041017146,13.30438172,133.34,133.3,25.5095741]
[1765041017340,13.30438172,133.34,133.31,8.24]
[1765041017341,5.83475671,133.33,133.31,8.24]
[1765041017858,0.72,133.32,133.31,8.24]
[1765041026446,5.83475671,133.32,133.29,16.31225033]
[1765041026772,5.83475671,133.32,133.3,8.24]
[1765041026982,5.83475671,133.31,133.3,8.24]
[1765041027885,5.83475671,133.31,133.27,16.70413795]
[1765041028088,5.83475671,133.3,133.28,8.24]
[1765041028592,0.72,133.29,133.27,16.70413795]
[1765041028795,0.72,133.29,133.28,8.24]
[1765041033695,0.72,133.29,133.27,16.70413795]
[1765041033996,5.11475671,133.28,133.27,8.24]
[1765041034507,5.83475671,133.28,133.27,8.24]
[1765041034909,5.83475671,133.28,133.23,7.50571248]
[1765041035206,5.11475671,133.26,133.24,8.24]
[1765041035573,0.72,133.25,133.24,8.24]
[1765041040110,0.72,133.25,133.22,47.14056981]
[1765041040319,0.72,133.25,133.24,8.24]
[1765041040320,5.83475671,133.25,133.24,8.24]
[1765041040473,5.83475671,133.25,133.22,9.4007101]
[1765041040818,0.66,133.24,133.23,8.24]
[1765041050026,5.77475671,133.24,133.22,9.4007101]
[1765041050246,5.11475671,133.23,133.22,0.2]
[1765041050436,5.77475671,133.23,133.22,8.44]
[1765041051351,5.77475671,133.23,133.22,0.2]
[1765041051534,5.77475671,133.23,133.22,8.44]
[1765041051535,13.28057371,133.23,133.22,8.44]
[1765041052141,13.28057371,133.23,133.22,0.2]
[1765041058255,18.39533042,133.23,133.22,0.2]
[1765041058475,43.90490452,133.23,133.22,0.2]
[1765041059276,43.90490452,133.23,133.19,0.2]
[1765041059481,21.42362071,133.2,133.19,0.2]
[1765041059871,22.12362071,133.2,133.19,0.2]
[1765041060183,29.63112821,133.2,133.19,0.2]
[1765041060369,8.80994492,133.19,133.16,0.2]
[1765041060570,3.28696168,133.17,133.16,0.2]
[1765041061065,3.98696168,133.17,133.16,0.2]
[1765041062872,11.49616044,133.17,133.16,0.2]
[1765041066664,27.80502444,133.17,133.16,0.2]
[1765041073829,16.308864,133.15,133.14,0.2]
[1765041074100,31.69273228,133.15,133.13,0.2]
[1765041074305,16.09386828,133.14,133.13,0.2]
[1765041074517,19.59582568,133.12,133.11,0.2]
[1765041074985,20.30582568,133.12,133.11,0.2]
[1765041075308,3.99696168,133.12,133.11,0.2]
[1765041076009,11.50898091,133.12,133.11,0.2]
[1765041076208,8.22201923,133.12,133.11,0.2]
[1765041076407,11.50898091,133.12,133.11,0.2]
[1765041079805,10.79898091,133.12,133.11,0.88]
[1765041080000,3.28696168,133.12,133.11,0.88]
[1765041080232,10.79850935,133.13,133.11,0.88]
[1765041081021,3.28696168,133.13,133.11,0.2]
[1765041081228,3.28696168,133.13,133.12,0.68]
[1765041081528,3.28696168,133.13,133.11,0.88]
[1765041081908,10.79799739,133.14,133.12,0.68]
[1765041082125,3.28696168,133.14,133.12,0.68]
[1765041085048,3.28696168,133.16,133.12,3.96696168]
[1765041085214,3.28696168,133.16,133.12,0.68]
[1765041085535,3.99696168,133.15,133.12,0.68]
[1765041085745,3.28696168,133.13,133.11,0.88]
[1765041085928,3.28696168,133.13,133.11,9.14]
[1765041086127,3.28696168,133.13,133.11,8.46]
[1765041086320,3.28696168,133.13,133.11,9.14]
[1765041086718,3.28696168,133.12,133.11,0.88]
[1765041087455,3.28696168,133.12,133.11,0.2]
[1765041087456,3.99696168,133.12,133.11,0.2]
[1765041087840,3.28696168,133.12,133.11,0.2]
[1765041088352,11.50898091,133.12,133.11,0.2]
[1765041090054,20.31892583,133.12,133.11,0.2]
[1765041090234,20.31892583,133.12,133.1,0.2]
[1765041090442,3.99696168,133.11,133.1,0.2]
[1765041090956,11.50954525,133.11,133.1,0.2]
[1765041093476,10.79954525,133.11,133.1,0.2]
[1765041093639,7.51209842,133.12,133.1,0.88]
[1765041093839,10.7990601,133.12,133.1,0.88]
[1765041094972,3.28696168,133.13,133.11,0.68]
[1765041095755,3.28696168,133.12,133.11,0.68]
[1765041100981,3.28696168,133.12,133.1,8.46]
[1765041101276,3.28696168,133.12,133.1,9.13]
[1765041102590,3.28696168,133.11,133.1,0.2]
[1765041102787,3.28696168,133.11,133.1,8.46]
[1765041102992,3.28696168,133.11,133.1,0.2]
[1765041103792,3.28696168,133.13,133.1,0.87]
[1765041104296,3.28696168,133.13,133.11,0.67]
[1765041105467,3.94696168,133.12,133.1,0.2]
[1765041105673,3.28696168,133.11,133.1,0.2]
[1765041105874,3.94696168,133.11,133.1,0.2]
[1765041107205,11.45954525,133.11,133.1,0.2]
[1765041108269,10.79954525,133.11,133.1,0.2]
[1765041108974,11.45954525,133.11,133.1,0.2]
[1765041110507,7.51145496,133.13,133.1,0.2]
[1765041110679,8.17145496,133.13,133.1,0.2]
[1765041110880,0.66,133.12,133.1,0.2]
[1765041111210,3.28696168,133.11,133.1,0.2]
[1765041113327,11.4592829,133.12,133.1,0.2]
[1765041113513,3.28696168,133.13,133.1,0.87]
[1765041113808,8.17101006,133.14,133.1,0.87]
[1765041114013,3.28696168,133.13,133.11,0.67]
[1765041117837,7.51101006,133.14,133.11,0.67]
[1765041118206,10.79797174,133.14,133.11,0.67]
[1765041119138,10.79728837,133.15,133.11,0.67]
[1765041119511,10.79728837,133.15,133.11,8.18252743]
[1765041119936,3.28696168,133.14,133.12,0.71]
[1765041120112,3.28696168,133.14,133.1,7.71301448]
[1765041120431,7.51032669,133.15,133.11,16.48254394]
[1765041120432,8.18032669,133.15,133.11,16.48254394]
[1765041120624,12.6464481,133.15,133.12,0.71]
[1765041120923,16.978864,133.16,133.12,5.84612141]
[1765041120924,7.50986228,133.16,133.12,5.84612141]
[1765041121256,5.13612141,133.16,133.12,8.22197371]
[1765041121553,5.13612141,133.16,133.13,0.71]
[1765041121728,5.13612141,133.17,133.13,0.71]
[1765041121926,5.13612141,133.16,133.13,0.71]
[1765041123026,5.80612141,133.16,133.13,0.71]
[1765041125551,5.80612141,133.16,133.14,8.26]
[1765041125847,5.80612141,133.15,133.11,8.22251673]
[1765041126150,5.13612141,133.13,133.11,7.51251673]
[1765041126451,5.13612141,133.13,133.12,8.26]
[1765041127016,5.80612141,133.14,133.12,8.26]
[1765041128368,5.80612141,133.13,133.12,8.26]
[1765041132182,5.13612141,133.13,133.12,8.26]
[1765041135270,5.85612141,133.13,133.1,8.46]
[1765041135476,5.85612141,133.12,133.1,8.46]
[1765041137649,5.85612141,133.11,133.1,0.2]
[1765041139607,16.308864,133.14,133.1,6.00612141]
[1765041139809,5.85612141,133.17,133.11,14.06612141]
[1765041140172,5.13612141,133.16,133.12,0.67]
[1765041140672,5.85612141,133.16,133.12,0.67]
[1765041140984,0.72,133.17,133.13,5.13612141]
[1765041141182,0.72,133.17,133.14,8.26]
[1765041141378,0.72,133.17,133.14,8.93]
[1765041141598,13.36478271,133.18,133.15,0.67]
[1765041141838,0.72,133.17,133.14,8.26]
[1765041141978,13.36546316,133.17,133.14,8.26]
[1765041143200,13.36546316,133.17,133.14,8.93]
[1765041144927,12.64546316,133.17,133.14,8.26]
[1765041145205,5.85612141,133.16,133.14,8.26]
[1765041146069,5.85612141,133.15,133.14,8.26]
[1765041147617,5.13612141,133.15,133.14,8.26]
[1765041150430,13.36609363,133.16,133.14,8.26]
[1765041150739,13.36609363,133.16,133.13,0.67]
[1765041151026,13.36609363,133.16,133.13,8.93]
[1765041159332,5.85612141,133.16,133.13,8.93]
[1765041159639,5.13612141,133.17,133.14,0.7]
[1765041159805,12.64491408,133.18,133.14,0.7]
[1765041160539,13.32491408,133.18,133.14,0.7]
[1765041160722,12.64491408,133.18,133.14,0.7]
[1765041160922,13.32549681,133.17,133.15,8.26]
[1765041162821,0.68,133.17,133.15,8.96]
[1765041163116,5.81612141,133.17,133.15,8.26]
[1765041169628,0.68,133.17,133.15,8.26]
[1765041169938,5.81612141,133.17,133.15,8.26]
[1765041170449,5.13612141,133.17,133.15,8.26]
[1765041170844,5.13612141,133.17,133.15,8.96]
[1765041171752,5.80612141,133.17,133.15,8.96]
[1765041172047,13.31519254,133.18,133.15,8.26]
[1765041172345,13.31519254,133.18,133.15,8.97]
[1765041172539,0.67,133.17,133.15,8.97]
[1765041176361,8.17807117,133.19,133.16,0.71]
[1765041176656,13.31419258,133.19,133.16,0.71]
[1765041176840,0.67,133.18,133.16,0.71]
[1765041177038,8.17757005,133.2,133.16,0.71]
[1765041177224,5.80612141,133.19,133.15,15.77026975]
[1765041177428,5.80612141,133.19,133.15,16.48026975]
[1765041177656,5.80612141,133.19,133.16,0.71]
[1765041179053,5.80612141,133.19,133.17,8.26]
[1765041180654,13.31314011,133.21,133.18,0.71]
[1765041180988,13.31314011,133.21,133.13,8.80994492]
[1765041180989,5.13612141,133.19,133.13,8.80994492]
[1765041181252,5.13612141,133.17,133.15,0.71]
[1765041182155,5.80612141,133.16,133.12,18.01065502]
[1765041182339,3.2869346,133.14,133.13,8.26]
[1765041182654,3.9569346,133.15,133.13,8.26]
[1765041183570,0.67,133.15,133.13,8.26]
[1765041183749,0.67,133.15,133.13,8.97]
[1765041183952,3.9569346,133.15,133.13,8.97]
[1765041184781,3.9569346,133.15,133.13,8.26]
[1765041184966,3.9569346,133.15,133.13,8.97]
[1765041185366,3.9569346,133.16,133.13,8.97]
[1765041190483,3.9469346,133.15,133.13,8.97]
[1765041192403,3.9469346,133.15,133.13,8.26]
[1765041198006,7.50992757,133.16,133.13,8.26]
[1765041198007,3.2869346,133.14,133.13,8.26]
[1765041198208,3.9469346,133.14,133.13,8.26]
[1765041198513,3.9469346,133.15,133.13,8.26]
[1765041199011,3.2869346,133.14,133.13,8.26]
[1765041201092,3.9469346,133.14,133.13,8.26]
[1765041202397,3.2869346,133.14,133.13,8.26]
[1765041202598,3.9469346,133.14,133.13,8.26]
[1765041203213,0.66,133.15,133.13,8.26]
[1765041203530,3.9469346,133.15,133.13,8.93]
[1765041203816,3.2869346,133.15,133.13,8.26]
[1765041204022,3.2869346,133.16,133.14,0.67]
[1765041204495,3.9469346,133.16,133.14,0.67]
[1765041204695,3.2869346,133.15,133.13,8.26]
[1765041204894,3.2869346,133.15,133.13,8.93]
[1765041208930,3.2869346,133.15,133.13,8.26]
[1765041209109,3.2869346,133.15,133.13,8.93]
[1765041209908,3.2869346,133.15,133.14,8.26]
[1765041217436,3.9469346,133.15,133.14,8.26]
[1765041217742,11.45729633,133.15,133.13,8.26]
[1765041217907,0.66,133.14,133.13,8.26]
[1765041218111,3.9469346,133.14,133.13,8.26]
[1765041218308,7.2338692,133.14,133.1,0.2]
[1765041218617,3.2869346,133.11,133.1,0.2]
[1765041219121,3.9469346,133.11,133.1,0.2]
[1765041219522,11.45951817,133.11,133.1,0.2]
[1765041219909,3.2869346,133.11,133.1,0.2]
[1765041220533,0.66,133.13,133.1,0.9]
[1765041220534,3.2869346,133.12,133.1,0.9]
[1765041221007,3.9469346,133.12,133.1,0.9]
[1765041221640,3.9469346,133.12,133.1,0.2]
[1765041222636,3.2869346,133.13,133.11,0.7]
[1765041222838,3.2869346,133.13,133.11,8.96]
[1765041223539,3.9469346,133.13,133.11,8.96]
[1765041224238,3.2869346,133.12,133.11,8.26]
[1765041226138,3.2869346,133.13,133.11,8.96]
[1765041226721,3.2869346,133.14,133.12,0.7]
[1765041228445,3.2869346,133.13,133.12,0.7]
[1765041228648,3.2869346,133.13,133.11,5.996106]
[1765041229147,3.9469346,133.13,133.11,5.996106]
[1765041230043,0.66,133.13,133.11,5.996106]
[1765041230833,3.2869346,133.14,133.11,5.996106]
[1765041231147,0.66,133.13,133.11,5.996106]
[1765041232252,7.50976269,133.16,133.12,0.42]
[1765041232449,11.45669729,133.16,133.12,0.42]
[1765041232619,3.2869346,133.15,133.12,0.42]
[1765041232951,3.9469346,133.15,133.12,0.42]
[1765041234949,3.2869346,133.14,133.11,7.51251995]
[1765041235254,3.2869346,133.13,133.12,8.26]
[1765041235454,3.9569346,133.13,133.12,8.26]
[1765041240454,0.67,133.19,133.13,8.80994492]
[1765041240667,3.9569346,133.19,133.15,8.80994492]
[1765041240829,3.9569346,133.19,133.16,8.28]
[1765041241051,0.67,133.18,133.16,8.28]
[1765041241328,0.67,133.18,133.17,11.21755704]
[1765041241541,3.2869346,133.19,133.17,11.21755704]
[1765041241748,3.9569346,133.19,133.17,11.21755704]
[1765041242144,0.67,133.19,133.17,11.21755704]
[1765041246041,0.67,133.19,133.16,8.28]
[1765041246238,0.67,133.19,133.16,27.04759766]
[1765041247472,13.31036689,133.19,133.16,18.76759766]
[1765041247763,5.13206488,133.17,133.11,8.80994492]
[1765041247938,5.13206488,133.14,133.12,8.26]
[1765041248135,5.13206488,133.15,133.12,8.26]
[1765041248562,0.67,133.14,133.12,8.26]
[1765041253258,5.80206488,133.14,133.13,8.26]
[1765041254858,13.31299554,133.14,133.11,22.55384731]
[1765041255050,13.31299554,133.14,133.1,7.71312152]
[1765041255051,5.82206488,133.13,133.12,8.26]
[1765041257557,5.82206488,133.13,133.1,8.13312152]
[1765041257855,5.82206488,133.13,133.11,8.26]
[1765041263771,0.69,133.13,133.11,8.26]
[1765041266168,5.82206488,133.13,133.11,8.26]
[1765041266666,0.69,133.13,133.11,8.26]
[1765041266868,5.13206488,133.14,133.11,8.26]
[1765041267050,5.82206488,133.14,133.11,8.68]
[1765041267397,5.82206488,133.14,133.11,8.26]
[1765041267604,5.13206488,133.14,133.11,8.26]
[1765041267789,7.51046343,133.15,133.12,8.68]
[1765041267790,5.82206488,133.15,133.12,8.68]
[1765041267989,5.82206488,133.15,133.12,8.26]
[1765041268187,0.69,133.14,133.12,8.26]
[1765041268788,0.69,133.15,133.12,8.68]
[1765041269091,5.82206488,133.15,133.12,8.68]
[1765041270506,0.69,133.14,133.12,8.26]
[1765041270702,0.69,133.14,133.1,16.94295779]
[1765041270703,5.82206488,133.14,133.1,16.94295779]
[1765041270893,5.13206488,133.13,133.11,8.26]
[1765041271090,5.82206488,133.14,133.11,8.26]
[1765041272087,5.82206488,133.14,133.11,8.68]
[1765041272909,5.13206488,133.15,133.11,16.19243329]
[1765041273113,0.69,133.14,133.11,16.19243329]
[1765041276713,0.69,133.14,133.11,15.77243329]
[1765041278317,0.69,133.14,133.11,16.19243329]
[1765041279906,5.13206488,133.15,133.11,16.19243329]
[1765041280214,0.72,133.14,133.11,16.19243329]
[1765041286629,5.13206488,133.15,133.12,8.80994492]
[1765041286828,0.72,133.14,133.13,8.26]
[1765041291726,0.72,133.17,133.14,8.80994492]
[1765041291908,0.72,133.17,133.14,9.22994492]
[1765041293329,0.72,133.17,133.14,16.74070445]
[1765041294034,0.72,133.17,133.14,21.87276933]
[1765041294933,0.72,133.17,133.14,16.74070445]
[1765041295129,0.72,133.17,133.14,21.87276933]
[1765041295637,0.72,133.17,133.14,16.74070445]
[1765041296107,0.72,133.17,133.15,15.77025747]
[1765041298734,5.13206488,133.19,133.15,15.77025747]
[1765041298939,0.72,133.18,133.15,16.19025747]
[1765041299318,0.72,133.18,133.15,15.77025747]
[1765041300238,5.85206488,133.18,133.15,15.77025747]
[1765041300921,0.72,133.17,133.15,15.77025747]
[1765041303144,5.13206488,133.16,133.15,8.26]
[1765041303643,5.85206488,133.16,133.14,8.26]
[1765041303816,5.85206488,133.15,133.14,8.26]
[1765041304342,4.00646773,133.15,133.14,8.26]
[1765041306154,0.72,133.17,133.14,8.68]
[1765041306456,0.72,133.17,133.14,19.47729126]
[1765041307024,4.00646773,133.19,133.15,9.22994492]
[1765041307224,0.72,133.18,133.15,9.22994492]
[1765041307527,0.72,133.18,133.15,8.80994492]
[1765041307942,0.72,133.18,133.15,16.74004465]
[1765041308123,0.72,133.18,133.15,16.32004465]
[1765041310651,0.72,133.18,133.16,8.26]
[1765041312375,4.00646773,133.18,133.16,8.26]
[1765041315245,3.94646773,133.18,133.16,8.26]
[1765041315640,0.66,133.17,133.16,8.26]
[1765041320888,0.66,133.17,133.16,15.76976269]
[1765041321158,3.94646773,133.19,133.16,16.18976269]
[1765041321765,3.94646773,133.19,133.16,15.76976269]
[1765041323228,0.66,133.18,133.16,15.76976269]
[1765041327144,3.28646773,133.17,133.14,8.80994492]
[1765041327337,3.94646773,133.18,133.15,8.26]
[1765041327538,0.66,133.17,133.15,8.26]
[1765041328648,3.94646773,133.19,133.15,19.47633529]
[1765041329164,0.66,133.18,133.15,19.47633529]
[1765041330370,123.06640767,133.22,133.15,19.05633529]
[1765041330658,0.66,133.21,133.18,8.80994492]
[1765041330959,0.66,133.21,133.19,8.26]
[1765041331162,3.94646773,133.21,133.19,8.26]
[1765041331550,0.66,133.2,133.19,8.26]
[1765041334766,0.66,133.2,133.17,7.50910759]
[1765041334945,0.66,133.2,133.19,8.26]
[1765041340969,3.94646773,133.2,133.16,7.5061469]
[1765041341172,3.94646773,133.2,133.17,8.26]
[1765041341470,0.72,133.19,133.17,8.26]
[1765041344972,4.00646773,133.19,133.15,16.71093117]
[1765041345270,3.28646773,133.18,133.16,8.26]
[1765041345466,4.00646773,133.18,133.16,8.26]
[1765041345669,0.72,133.17,133.16,8.26]
[1765041346077,0.72,133.17,133.14,7.5107344]
[1765041346268,0.72,133.17,133.16,8.26]
[1765041347677,4.00646773,133.17,133.13,16.3170137]
[1765041347860,3.28646773,133.14,133.11,3.0568318]
[1765041348192,0.72,133.16,133.12,8.26]
[1765041348492,0.72,133.15,133.12,8.26]
[1765041348856,0.72,133.15,133.13,8.26]
[1765041349050,3.28646773,133.14,133.13,8.26]
[1765041349455,4.00646773,133.14,133.13,8.26]
[1765041351965,7.51039461,133.15,133.13,8.26]
[1765041351966,3.28646773,133.15,133.13,8.26]
[1765041352267,22.55554302,133.17,133.13,8.68]
[1765041352268,3.28646773,133.16,133.13,8.68]
[1765041352470,3.99646773,133.16,133.13,8.68]
[1765041353153,3.99646773,133.16,133.13,8.26]
[1765041353788,0.71,133.16,133.13,15.77140713]
[1765041354278,0.71,133.16,133.13,16.19140713]
[1765041354482,0.71,133.16,133.13,15.77140713]
[1765041356987,3.99646773,133.17,133.13,16.19140713]
[1765041361266,0.71,133.16,133.13,16.19140713]
[1765041361966,0.71,133.16,133.13,15.77140713]
[1765041362288,0.71,133.16,133.13,16.19140713]
[1765041362783,11.50510266,133.18,133.13,19.05787486]
[1765041362989,3.99646773,133.19,133.15,8.80994492]
[1765041363175,3.99646773,133.19,133.16,8.26]
[1765041363690,0.71,133.2,133.17,8.80994492]
[1765041363871,7.50650215,133.22,133.17,8.80994492]
[1765041363872,0.71,133.19,133.17,8.80994492]
[1765041365284,3.28646773,133.21,133.17,16.31913359]
[1765041365489,0.71,133.21,133.18,0.42]
[1765041365790,0.71,133.22,133.19,17.06994492]
[1765041365969,3.99646773,133.22,133.19,17.06994492]
[1765041366381,0.71,133.22,133.19,17.06994492]
[1765041366692,5.83936671,133.22,133.19,17.06994492]
[1765041367589,0.71,133.21,133.19,17.06994492]
[1765041368792,0.71,133.21,133.19,24.57797189]
[1765041370467,0.7,133.22,133.19,24.57797189]
[1765041370667,0.7,133.21,133.19,24.57797189]
[1765041374994,12.63533773,133.23,133.19,24.57797189]
[1765041375196,0.7,133.22,133.19,24.99797189]
[1765041377200,7.50537719,133.24,133.21,8.80994492]
[1765041377201,5.82936671,133.24,133.21,8.80994492]
[1765041377373,5.82936671,133.24,133.22,8.26]
[1765041377374,0.7,133.23,133.22,8.26]
[1765041378378,5.12936671,133.24,133.22,8.26]
[1765041378379,5.82936671,133.24,133.22,8.26]
[1765041378597,0.1,133.26,133.23,8.80994492]
[1765041378904,0.7,133.25,133.23,8.80994492]
[1765041381210,5.12936671,133.24,133.21,7.50470834]
[1765041381388,5.12936671,133.23,133.22,8.26]
[1765041381804,5.82936671,133.23,133.22,8.26]
[1765041385482,5.82936671,133.23,133.21,8.26]
[1765041385702,0.7,133.22,133.21,8.26]
[1765041385878,5.82936671,133.22,133.21,8.26]
[1765041386611,5.82936671,133.22,133.18,16.31845517]
[1765041386788,5.82936671,133.21,133.18,8.80994492]
[1765041386988,5.82936671,133.21,133.19,8.26]
[1765041387204,0.7,133.2,133.19,8.26]
[1765041393221,5.82936671,133.2,133.19,8.26]
[1765041393422,5.82936671,133.2,133.17,7.50913608]
[1765041393715,5.82936671,133.2,133.18,8.26]
[1765041395625,0.7,133.2,133.18,15.76856429]
[1765041396525,5.82936671,133.21,133.18,16.18856429]
[1765041397002,5.82936671,133.21,133.18,15.76856429]
[1765041397827,5.12936671,133.21,133.18,15.76856429]
[1765041398004,0.7,133.2,133.18,15.76856429]
[1765041400332,0.7,133.2,133.18,7.50856429]
[1765041400528,0.7,133.2,133.19,8.26]